bitfinex/quotes_BTCUSD_20250208
["timestamp","ask_amount","ask_price","bid_price","bid_amount"]
[1739001220789,0.00015215,96325.0,96324.0,0.48792765]
[1739001222308,0.00015215,96325.0,96324.0,0.48292765]
[1739001222458,0.00015215,96325.0,96324.0,0.47992765]
[1739001222674,0.00015215,96325.0,96324.0,0.48492765]
[1739001222916,0.00015215,96325.0,96324.0,0.48792765]
[1739001223449,0.00015215,96325.0,96324.0,0.48292765]
[1739001223678,0.00015215,96325.0,96324.0,0.48492765]
[1739001223889,0.00015215,96325.0,96324.0,0.48792765]
[1739001226653,0.00015215,96325.0,96324.0,0.48292765]
[1739001226957,0.00015215,96325.0,96324.0,0.47992765]
[1739001227124,0.00015215,96325.0,96324.0,0.48292765]
[1739001228110,0.00015215,96325.0,96324.0,0.48792765]
[1739001231050,0.00015215,96325.0,96324.0,0.48492765]
[1739001231166,0.00015215,96325.0,96324.0,0.48292765]
[1739001231595,0.00015215,96325.0,96324.0,0.48792765]
[1739001231848,0.00015215,96325.0,96324.0,0.56752765]
[1739001232024,0.0145784,96346.0,96341.0,0.305696]
[1739001232337,0.00171489,96342.0,96341.0,0.305696]
[1739001233262,0.00171489,96342.0,96341.0,0.309696]
[1739001233668,0.00171489,96342.0,96341.0,0.311696]
[1739001234899,0.00171489,96342.0,96341.0,0.3222056]
[1739001236159,0.00171489,96342.0,96341.0,0.1722056]
[1739001236618,0.0141735,96342.0,96341.0,0.1722056]
[1739001236820,0.00171489,96342.0,96341.0,0.1722056]
[1739001237024,0.01417233,96342.0,96341.0,0.1722056]
[1739001237226,0.00171489,96342.0,96341.0,0.1722056]
[1739001237430,0.01417233,96342.0,96341.0,0.161696]
[1739001237629,0.00171489,96342.0,96341.0,0.161696]
[1739001237765,0.01427913,96342.0,96341.0,0.157696]
[1739001237969,0.01427913,96342.0,96341.0,0.159696]
[1739001238489,0.01427913,96342.0,96341.0,0.157696]
[1739001239132,0.01427913,96342.0,96341.0,0.159696]
[1739001239584,0.01427913,96342.0,96341.0,0.157696]
[1739001240581,0.01427913,96342.0,96341.0,0.156696]
[1739001240741,0.01427913,96342.0,96341.0,0.158696]
[1739001240949,0.01427913,96342.0,96341.0,0.157696]
[1739001241176,0.01427913,96342.0,96341.0,0.158696]
[1739001241378,0.01427913,96342.0,96341.0,0.156696]
[1739001241700,0.01427913,96342.0,96341.0,0.159696]
[1739001242082,0.01427913,96342.0,96341.0,0.309696]
[1739001242284,0.00182169,96342.0,96341.0,0.309696]
[1739001246880,0.00182169,96342.0,96341.0,0.308696]
[1739001247174,0.00182169,96342.0,96341.0,0.305696]
[1739001247329,0.00182169,96342.0,96341.0,0.306696]
[1739001247665,0.00182169,96342.0,96341.0,0.310696]
[1739001255747,0.00831179,96342.0,96341.0,0.310696]
[1739001257103,0.00831179,96342.0,96341.0,0.305696]
[1739001257406,0.00831179,96342.0,96341.0,0.309696]
[1739001258010,0.00831179,96342.0,96341.0,0.306696]
[1739001258222,0.00831179,96342.0,96341.0,0.309696]
[1739001259883,0.02076741,96342.0,96341.0,0.309696]
[1739001261678,0.03115176,96342.0,96341.0,0.309696]
[1739001262899,0.01427731,96342.0,96341.0,0.306696]
[1739001263130,0.01427731,96342.0,96341.0,0.308696]
[1739001263553,0.01427731,96342.0,96341.0,0.309696]
[1739001264359,0.01427731,96342.0,96341.0,0.308696]
[1739001264947,0.01427731,96342.0,96341.0,0.305696]
[1739001265309,0.01427731,96342.0,96341.0,0.307696]
[1739001265782,0.01427731,96342.0,96341.0,0.305696]
[1739001265983,0.01427731,96342.0,96341.0,0.309696]
[1739001266197,0.01427731,96342.0,96341.0,0.310696]
[1739001266606,0.01427731,96342.0,96341.0,0.384796]
[1739001266839,0.01427731,96342.0,96341.0,0.390796]
[1739001266997,0.01427731,96342.0,96341.0,0.389796]
[1739001267417,0.01427731,96342.0,96341.0,0.391796]
[1739001267810,0.01427731,96342.0,96341.0,0.389796]
[1739001268077,0.01427731,96342.0,96341.0,0.385796]
[1739001268249,0.01427731,96342.0,96341.0,0.391796]
[1739001268819,0.01427731,96342.0,96341.0,0.385796]
[1739001269274,0.01427731,96342.0,96341.0,0.389796]
[1739001271394,0.00182169,96342.0,96341.0,0.389796]
[1739001271713,0.00182169,96342.0,96341.0,0.386796]
[1739001272257,0.00182169,96342.0,96341.0,0.383796]
[1739001272597,0.00182169,96342.0,96341.0,0.386796]
[1739001272808,0.00182169,96342.0,96341.0,0.309696]
[1739001274096,0.00182169,96342.0,96341.0,0.308696]
[1739001274243,0.00182169,96342.0,96341.0,0.306696]
[1739001274711,0.00182169,96342.0,96341.0,0.309696]
[1739001277995,0.00182169,96342.0,96341.0,0.306696]
[1739001278646,0.00182169,96342.0,96341.0,0.310696]
[1739001279204,0.00182169,96342.0,96341.0,0.309696]
[1739001279715,0.00182169,96342.0,96341.0,0.310696]
[1739001280619,0.00182169,96342.0,96341.0,0.309696]
[1739001281283,0.00182169,96342.0,96341.0,0.313696]
[1739001281439,0.00182169,96342.0,96341.0,0.309696]
[1739001281812,0.00182169,96342.0,96341.0,0.386796]
[1739001282104,0.00182169,96342.0,96341.0,0.392796]
[1739001282506,0.00182169,96342.0,96341.0,0.386796]
[1739001282643,0.00182169,96342.0,96341.0,0.388796]
[1739001283046,0.00182169,96342.0,96341.0,0.384796]
[1739001283578,0.00282169,96342.0,96341.0,0.384796]
[1739001291645,0.00931121,96342.0,96341.0,0.384796]
[1739001292125,0.00931121,96342.0,96341.0,0.307696]
[1739001292920,0.00282169,96342.0,96341.0,0.307696]
[1739001293330,0.00182169,96342.0,96341.0,0.307696]
[1739001293530,0.00182169,96342.0,96341.0,0.305696]
[1739001294030,0.01220564,96342.0,96341.0,0.307696]
[1739001295067,0.01869564,96342.0,96341.0,0.307696]
[1739001297438,0.01869564,96342.0,96341.0,0.002]
[1739001297640,0.12119929,96342.0,96341.0,0.002]
[1739001297836,0.4526542,96342.0,96341.0,0.002]
[1739001298201,0.4526542,96342.0,96332.0,0.09506003]
[1739001298405,0.00067923,96341.0,96335.0,0.15]
[1739001298607,0.0794,96340.0,96335.0,0.15]
[1739001298887,0.0794,96340.0,96335.0,0.305706]
[1739001299070,0.01245241,96339.0,96335.0,0.305706]
[1739001299272,0.01245241,96339.0,96335.0,0.15]
[1739001299442,0.01245241,96339.0,96336.0,0.155703]
[1739001299674,0.01245241,96339.0,96337.0,0.15]
[1739001299869,0.01245241,96339.0,96325.0,0.01060503]
[1739001299870,0.20816539,96338.0,96325.0,0.00022428]
[1739001300050,0.155708,96334.0,96325.0,0.00022428]
[1739001300222,0.10318288,96333.0,96325.0,0.00022428]
[1739001300423,0.11562163,96333.0,96332.0,0.003]
[1739001300868,0.11562163,96333.0,96325.0,0.00022428]
[1739001301254,0.11562163,96333.0,96325.0,0.00522428]
[1739001301688,0.01687395,96332.0,96325.0,0.00022428]
[1739001302012,0.01311029,96331.0,96325.0,0.00122428]
[1739001302218,0.3984025,96330.0,96325.0,0.00622428]
[1739001302427,0.155721,96326.0,96325.0,0.00622428]
[1739001302651,0.33830388,96326.0,96325.0,0.00122428]
[1739001302854,0.66903612,96326.0,96325.0,0.00122428]
[1739001303083,0.68591007,96326.0,96325.0,0.00122428]
[1739001303444,0.68591007,96326.0,96325.0,0.00222428]
[1739001303674,0.68591007,96326.0,96325.0,0.00322428]
[1739001304333,0.79908045,96326.0,96325.0,0.00222428]
[1739001304683,0.79908045,96326.0,96325.0,0.00622428]
[1739001305108,0.72890065,96326.0,96325.0,0.00622428]
[1739001305244,0.72890065,96326.0,96325.0,0.00422428]
[1739001305452,0.6965768,96326.0,96325.0,0.00022428]
[1739001305655,0.6975768,96326.0,96325.0,0.00122428]
[1739001306864,0.6975768,96326.0,96325.0,0.00222428]
[1739001309649,0.80008045,96326.0,96325.0,0.00222428]
[1739001310114,0.84868045,96326.0,96325.0,0.00222428]
[1739001310934,0.95808045,96326.0,96325.0,0.00222428]
[1739001311204,0.7461768,96326.0,96325.0,0.00222428]
[1739001311419,0.7561768,96326.0,96325.0,0.00222428]
[1739001311676,0.7561768,96326.0,96300.0,0.08277161]
[1739001311677,0.283734,96318.0,96300.0,0.08277161]
[1739001311889,0.70524015,96318.0,96300.0,0.08277161]
[1739001312190,0.71762201,96318.0,96300.0,0.08277161]
[1739001312346,0.82012566,96318.0,96300.0,0.08277161]
[1739001312773,0.155761,96301.0,96300.0,0.04083637]
[1739001312981,0.25826465,96301.0,96300.0,0.04083637]
[1739001313153,0.11487881,96301.0,96290.0,0.15]
[1739001313334,0.42218538,96300.0,96290.0,0.15]
[1739001313539,0.155764,96299.0,96290.0,0.15]
[1739001313748,0.11487881,96298.0,96290.0,0.15]
[1739001313954,0.11487881,96298.0,96290.0,0.15004535]
[1739001314570,0.11487881,96298.0,96290.0,0.15304535]
[1739001314781,0.27064581,96298.0,96290.0,0.00304535]
[1739001314988,0.11487881,96298.0,96290.0,0.00304535]
[1739001315183,0.11555804,96298.0,96290.0,0.00304535]
[1739001316057,0.11555804,96298.0,96290.0,0.00104535]
[1739001316684,0.11555804,96298.0,96290.0,0.00504535]
[1739001316888,0.11487881,96298.0,96290.0,0.00504535]
[1739001317098,0.11487881,96298.0,96290.0,0.00304535]
[1739001317267,0.11555804,96298.0,96290.0,0.00304535]
[1739001317481,0.11555804,96298.0,96290.0,0.00104535]
[1739001317805,0.11655804,96298.0,96290.0,0.00104535]
[1739001318041,0.27232504,96298.0,96290.0,0.00104535]
[1739001318582,0.3190025,96297.0,96290.0,0.00104535]
[1739001318765,0.10250365,96296.0,96290.0,0.00104535]
[1739001318973,0.01233857,96295.0,96290.0,0.00104535]
[1739001319211,0.00067923,96294.0,96290.0,0.00104535]
[1739001319590,0.00067923,96294.0,96290.0,4.535e-05]
[1739001319817,0.01233857,96293.0,96290.0,4.535e-05]
[1739001320020,0.01233857,96293.0,96290.0,0.00204535]
[1739001320394,0.01233857,96293.0,96290.0,4.535e-05]
[1739001320596,0.01233857,96293.0,96290.0,0.00304535]
[1739001320794,0.01233857,96293.0,96290.0,0.00404535]
[1739001321667,0.00067923,96295.0,96290.0,0.00304535]
[1739001321874,0.01233857,96292.0,96290.0,0.00326963]
[1739001322078,0.155774,96293.0,96290.0,0.00326963]
[1739001322280,0.01233857,96291.0,96290.0,0.00026963]
[1739001322714,0.0130178,96291.0,96290.0,0.00326963]
[1739001323136,0.0130178,96291.0,96290.0,0.00026963]
[1739001323586,0.0130178,96291.0,96290.0,0.00326963]
[1739001323790,0.01233857,96291.0,96290.0,0.00326963]
[1739001324140,0.00067923,96294.0,96290.0,0.00326963]
[1739001324350,0.01233298,96293.0,96290.0,0.00426963]
[1739001324570,0.31968173,96292.0,96290.0,0.00426963]
[1739001325064,0.31968173,96292.0,96290.0,0.00326963]
[1739001325065,0.01233298,96291.0,96290.0,0.00326963]
[1739001325270,0.01301221,96291.0,96290.0,0.00326963]
[1739001325447,0.16878921,96291.0,96290.0,0.00026963]
[1739001325651,0.01301221,96291.0,96290.0,0.00026963]
[1739001325970,0.01301221,96291.0,96290.0,0.00126963]
[1739001326172,0.01233298,96291.0,96290.0,0.00126963]
[1739001326385,0.01233298,96291.0,96290.0,0.00026963]
[1739001326584,0.01233298,96291.0,96290.0,0.00326963]
[1739001327003,0.01233298,96291.0,96290.0,0.00426963]
[1739001330595,0.34174123,96291.0,96290.0,0.00426963]
[1739001334447,0.33133548,96291.0,96290.0,0.00426963]
[1739001336343,0.33133548,96291.0,96290.0,0.00126963]
[1739001336886,0.33233548,96291.0,96290.0,0.00026963]
[1739001337091,0.33333548,96291.0,96290.0,0.00026963]
[1739001339810,0.33982993,96291.0,96290.0,0.00026963]
[1739001340860,0.33333548,96291.0,96290.0,0.00026963]
[1739001346568,0.33982991,96291.0,96290.0,0.00026963]
[1739001351729,0.33333548,96291.0,96290.0,0.00026963]
[1739001352653,0.33333548,96291.0,96290.0,0.15026963]
[1739001355808,0.33333548,96291.0,96290.0,0.15604863]
[1739001357272,0.3210025,96291.0,96290.0,0.23734863]
[1739001357591,0.33333544,96291.0,96290.0,0.23734863]
[1739001358157,0.33233544,96291.0,96290.0,0.23734863]
[1739001358912,0.33133544,96291.0,96290.0,0.24770862]
[1739001359369,0.33233544,96291.0,96290.0,0.24770862]
[1739001359867,0.33133544,96291.0,96290.0,0.24770862]
[1739001360053,0.33133544,96291.0,96290.0,0.24970862]
[1739001360299,0.01233294,96291.0,96290.0,0.24970862]
[1739001360497,0.01233294,96291.0,96290.0,0.44740862]
[1739001360704,0.0001068,96300.0,96299.0,0.284764]
[1739001361658,0.0001068,96300.0,96299.0,0.434764]
[1739001362301,0.0011068,96300.0,96299.0,0.434764]
[1739001363205,0.0011068,96300.0,96299.0,0.435764]
[1739001363649,0.0011068,96300.0,96299.0,0.434764]
[1739001364049,0.0001068,96300.0,96299.0,0.434764]
[1739001365149,0.0001068,96300.0,96299.0,0.436764]
[1739001365952,0.0001068,96300.0,96299.0,0.434764]
[1739001366520,0.0001068,96300.0,96299.0,0.436764]
[1739001367515,0.0001068,96300.0,96299.0,0.437764]
[1739001368420,0.0001068,96300.0,96299.0,0.434764]
[1739001368829,0.0001068,96300.0,96299.0,0.436764]
[1739001369643,0.0001068,96300.0,96299.0,0.43698828]
[1739001372167,0.0001068,96300.0,96299.0,0.43498828]
[1739001372374,0.0001068,96300.0,96299.0,0.43798828]
[1739001372579,0.0001068,96300.0,96299.0,0.44298828]
[1739001373513,0.0001068,96300.0,96299.0,0.43998828]
[1739001374031,0.0001068,96300.0,96299.0,0.44298828]
[1739001375202,0.0001068,96300.0,96299.0,0.43798828]
[1739001375603,0.0001068,96300.0,96299.0,0.44398828]
[1739001375855,0.0001068,96300.0,96299.0,0.44098828]
[1739001377479,0.0001068,96300.0,96299.0,0.35968828]
[1739001377880,0.0001068,96300.0,96299.0,0.36268828]
[1739001378056,0.0001068,96300.0,96299.0,0.35968828]
[1739001378256,0.0001068,96300.0,96299.0,0.35368828]
[1739001378481,0.0001068,96300.0,96299.0,0.35468828]
[1739001378678,0.0001068,96300.0,96299.0,0.35368828]
[1739001378855,0.0001068,96300.0,96299.0,0.35768828]
[1739001379076,0.0001068,96300.0,96299.0,0.35868828]
[1739001379448,0.0001068,96300.0,96299.0,0.35468828]
[1739001380441,0.0001068,96300.0,96299.0,0.43108828]
[1739001380867,0.0001068,96300.0,96299.0,0.43408828]
[1739001388374,0.0001068,96300.0,96299.0,0.43308828]
[1739001389026,0.0001068,96300.0,96299.0,0.43808828]
[1739001391769,0.0001068,96300.0,96299.0,0.56359193]
[1739001392772,0.0001068,96300.0,96299.0,0.55859193]
[1739001392969,0.0001068,96300.0,96299.0,0.55559193]
[1739001393390,0.0001068,96300.0,96299.0,0.55659193]
[1739001394514,0.0001068,96300.0,96299.0,0.55959193]
[1739001394934,0.0001068,96300.0,96299.0,0.55859193]
[1739001395133,0.0001068,96300.0,96299.0,0.55559193]
[1739001395540,0.0001068,96300.0,96299.0,0.55859193]
[1739001395742,0.0001068,96300.0,96299.0,0.55959193]
[1739001395912,0.0001068,96300.0,96299.0,0.55859193]
[1739001396279,0.0001068,96300.0,96299.0,0.55959193]
[1739001396477,0.3190025,96331.0,96330.0,0.305714]
[1739001396700,0.0001068,96334.0,96333.0,0.305709]
[1739001397736,0.00056029,96334.0,96333.0,0.305709]
[1739001399095,0.00156029,96334.0,96333.0,0.32500576]
[1739001402889,0.08166029,96334.0,96333.0,0.16929676]
[1739001403317,0.09335178,96334.0,96333.0,0.16929676]
[1739001404365,0.09335178,96334.0,96333.0,0.15]
[1739001405119,0.01325178,96334.0,96333.0,0.15]
[1739001405520,0.00156029,96334.0,96333.0,0.15]
[1739001415433,0.01326755,96334.0,96333.0,0.15]
[1739001419723,0.33227005,96334.0,96333.0,0.15]
[1739001420527,0.33227005,96334.0,96333.0,0.305709]
[1739001428144,0.32056279,96334.0,96333.0,0.305709]
[1739001428349,0.33226599,96334.0,96333.0,0.305709]
[1739001428795,0.33126599,96334.0,96333.0,0.305709]
[1739001428992,0.33226599,96334.0,96333.0,0.305709]
[1739001433735,0.33126599,96334.0,96333.0,0.305709]
[1739001435045,0.33126599,96334.0,96333.0,0.307709]
[1739001435264,0.33226599,96334.0,96333.0,0.307709]
[1739001435484,0.33126599,96334.0,96333.0,0.307709]
[1739001436636,0.33126599,96334.0,96333.0,0.305709]
[1739001436818,0.33126599,96334.0,96333.0,0.307709]
[1739001437250,0.33126599,96334.0,96333.0,0.305709]
[1739001437573,0.33126599,96334.0,96333.0,0.307709]
[1739001438006,0.33126599,96334.0,96333.0,0.305709]
[1739001438441,0.33126599,96334.0,96333.0,0.306709]
[1739001439269,0.33226599,96334.0,96333.0,0.306709]
[1739001439825,0.33226599,96334.0,96333.0,0.305709]
[1739001440227,0.33226599,96334.0,96333.0,0.306709]
[1739001440422,0.33126599,96334.0,96333.0,0.306709]
[1739001441586,0.33126599,96334.0,96333.0,0.305709]
[1739001441939,0.33226599,96334.0,96333.0,0.305709]
[1739001442680,0.33226599,96334.0,96333.0,0.306709]
[1739001448423,0.33226599,96334.0,96333.0,0.151]
[1739001448982,0.48797399,96334.0,96333.0,0.151]
[1739001450270,0.33226599,96334.0,96333.0,0.15]
[1739001450498,0.33126599,96334.0,96333.0,0.15]
[1739001450697,0.33126599,96334.0,96333.0,0.151]
[1739001450948,0.33226599,96334.0,96333.0,0.151]
[1739001451747,0.33226599,96334.0,96333.0,0.15]
[1739001452172,0.43376964,96334.0,96333.0,0.15]
[1739001452604,0.43476964,96334.0,96333.0,0.15]
[1739001452801,0.43376964,96334.0,96333.0,0.15]
[1739001453099,0.62291416,96334.0,96333.0,0.15]
[1739001453658,0.46720616,96334.0,96333.0,0.15]
[1739001453866,0.43476964,96334.0,96333.0,0.15]
[1739001455118,0.59047764,96334.0,96333.0,0.15]
[1739001455773,0.43476964,96334.0,96333.0,0.15]
[1739001456379,0.59047764,96334.0,96333.0,0.15]
[1739001457506,0.155735,96318.0,96308.0,0.15575]
[1739001457837,0.0457,96332.0,96308.0,0.155749]
[1739001457838,0.11421271,96317.0,96308.0,0.155749]
[1739001458054,0.11421271,96317.0,96307.0,0.207669]
[1739001458055,0.32077923,96316.0,96300.0,0.09540839]
[1739001458229,0.15574,96314.0,96305.0,0.15]
[1739001458436,0.11419843,96315.0,96307.0,0.155751]
[1739001458618,0.10250365,96315.0,96302.0,0.20768]
[1739001458824,0.10250365,96315.0,96301.0,0.207682]
[1739001458825,0.01237401,96314.0,96308.0,0.011]
[1739001459018,0.01237401,96314.0,96308.0,0.007]
[1739001459255,0.01237401,96314.0,96305.0,0.305755]
[1739001459423,0.01237401,96314.0,96308.0,0.15]
[1739001460027,0.01237401,96314.0,96308.0,0.153]
[1739001460460,0.01237401,96314.0,96308.0,0.003]
[1739001460776,0.10241174,96313.0,96308.0,0.003]
[1739001460951,0.00067923,96312.0,96308.0,0.003]
[1739001461274,0.43497458,96312.0,96308.0,0.008]
[1739001461841,0.43429535,96312.0,96308.0,0.005]
[1739001462239,0.25892788,96311.0,96302.0,0.15]
[1739001462444,0.25892788,96311.0,96300.0,0.00022428]
[1739001462445,0.3201,96310.0,96300.0,0.00022428]
[1739001462650,0.25893088,96309.0,96308.0,0.002]
[1739001462858,0.25825165,96309.0,96308.0,0.002]
[1739001463082,0.26994306,96309.0,96308.0,0.002]
[1739001463954,0.11419506,96309.0,96301.0,0.15]
[1739001464187,0.00067923,96308.0,96300.0,0.15322428]
[1739001464390,0.10250365,96307.0,96302.0,0.005]
[1739001464601,0.11417919,96307.0,96302.0,0.005]
[1739001464813,0.11417919,96307.0,96302.0,0.15]
[1739001465021,0.11417919,96307.0,96301.0,0.15]
[1739001466047,0.11517919,96307.0,96302.0,0.001]
[1739001466218,0.11485842,96307.0,96302.0,0.001]
[1739001466418,0.11417919,96307.0,96302.0,0.156759]
[1739001466698,0.11417919,96307.0,96302.0,0.001]
[1739001466964,0.11417919,96307.0,96302.0,0.155759]
[1739001467190,0.3201,96306.0,96303.0,0.155758]
[1739001467425,0.10250365,96305.0,96304.0,0.15]
[1739001467649,0.11418014,96305.0,96304.0,0.15]
[1739001468256,0.11418014,96305.0,96300.0,0.15022428]
[1739001468455,0.11418014,96305.0,96302.0,0.155759]
[1739001468858,0.11518014,96305.0,96304.0,0.001]
[1739001469231,0.11418014,96305.0,96304.0,0.001]
[1739001469383,0.11518014,96305.0,96304.0,0.001]
[1739001469739,0.11418014,96305.0,96304.0,0.001]
[1739001470041,0.11518014,96305.0,96304.0,0.001]
[1739001470236,0.11518014,96305.0,96302.0,0.155758]
[1739001470388,0.11518014,96305.0,96300.0,0.15026963]
[1739001470597,0.12582826,96305.0,96304.0,0.15]
[1739001471322,0.12582826,96305.0,96304.0,0.306756]
[1739001471547,0.12482826,96305.0,96304.0,0.001]
[1739001471718,0.12582826,96305.0,96304.0,0.001]
[1739001472090,0.12482826,96305.0,96304.0,0.001]
[1739001472494,0.12582826,96305.0,96304.0,0.001]
[1739001473099,0.44592826,96305.0,96304.0,0.001]
[1739001473306,0.44492826,96305.0,96303.0,0.305758]
[1739001473749,0.44492826,96305.0,96301.0,0.30576]
[1739001474410,0.44492826,96305.0,96304.0,0.001]
[1739001474818,0.44592826,96305.0,96301.0,0.15]
[1739001475178,0.44692826,96305.0,96301.0,0.151]
[1739001475364,0.44692826,96305.0,96301.0,0.306761]
[1739001475584,0.44492826,96305.0,96301.0,0.306761]
[1739001475767,0.44592826,96305.0,96301.0,0.001]
[1739001476204,0.44592826,96305.0,96302.0,0.15]
[1739001476358,0.44792826,96305.0,96302.0,0.15]
[1739001476716,0.44792826,96305.0,96302.0,0.15022428]
[1739001477282,0.44892826,96305.0,96302.0,0.15022428]
[1739001477692,0.44592826,96305.0,96302.0,0.15022428]
[1739001478104,0.44792826,96305.0,96302.0,0.15022428]
[1739001479378,0.44792826,96305.0,96302.0,0.00022428]
[1739001480486,0.44792826,96305.0,96302.0,0.15022428]
[1739001480913,0.43625177,96305.0,96302.0,0.15022428]
[1739001481332,0.01167443,96304.0,96302.0,0.15022428]
[1739001481506,0.10250365,96303.0,96302.0,0.15022428]
[1739001481683,0.10250365,96303.0,96302.0,0.30598428]
[1739001482121,0.11417808,96303.0,96302.0,0.15022428]
[1739001482517,0.11417808,96303.0,96302.0,0.30598428]
[1739001483254,0.11617808,96303.0,96302.0,0.30598428]
[1739001484042,0.11717808,96303.0,96302.0,0.30598428]
[1739001484964,0.43727808,96303.0,96302.0,0.30598428]
[1739001486364,0.43727808,96303.0,96302.0,0.15022428]
[1739001486659,0.43727808,96303.0,96302.0,0.00022428]
[1739001487368,0.42560365,96303.0,96302.0,0.00022428]
[1739001487781,0.43727808,96303.0,96302.0,0.00022428]
[1739001490177,0.43727808,96303.0,96302.0,0.15022428]
[1739001493372,0.33477443,96303.0,96302.0,0.15598428]
[1739001493758,0.33477443,96303.0,96302.0,0.00022428]
[1739001494524,0.3231,96303.0,96302.0,0.00022428]
[1739001494905,0.33477393,96303.0,96302.0,0.00022428]
[1739001495444,0.33477393,96303.0,96302.0,0.15022428]
[1739001495913,0.3231,96303.0,96302.0,0.15022428]
[1739001496377,0.33477393,96303.0,96302.0,0.15022428]
[1739001497101,0.33477393,96303.0,96302.0,0.30598428]
[1739001498241,0.33477393,96303.0,96302.0,0.15022428]
[1739001499412,0.3231,96303.0,96302.0,0.15022428]
[1739001499818,0.33477393,96303.0,96302.0,0.15022428]
[1739001507404,0.62549448,96303.0,96302.0,0.00022428]
[1739001508623,0.70549448,96303.0,96302.0,0.00022428]
[1739001509039,0.80799813,96303.0,96302.0,0.00022428]
[1739001510637,0.85579813,96303.0,96302.0,0.00022428]
[1739001511572,0.85379813,96303.0,96302.0,0.00022428]
[1739001511776,0.85279813,96303.0,96302.0,0.00022428]
[1739001511948,0.85579813,96303.0,96302.0,0.00022428]
[1739001512366,0.75329448,96303.0,96302.0,0.00022428]
[1739001512977,0.75229448,96303.0,96302.0,0.00022428]
[1739001513288,0.7723751,96303.0,96302.0,0.00022428]
[1739001514557,0.7743751,96303.0,96302.0,0.00022428]
[1739001514967,0.7723751,96303.0,96302.0,0.00022428]
[1739001515167,0.7773751,96303.0,96302.0,0.00122428]
[1739001515307,0.78883707,96303.0,96302.0,0.00122428]
[1739001515509,0.7803751,96303.0,96302.0,0.00222428]
[1739001517835,0.7903751,96303.0,96302.0,0.00222428]
[1739001518362,0.8133751,96303.0,96302.0,0.00222428]
[1739001533356,0.01,96302.0,96282.0,0.05532162]
[1739001533514,0.10250365,96294.0,96282.0,0.20536695]
[1739001533733,0.155789,96284.0,96282.0,0.20536695]
[1739001533957,0.12221484,96283.0,96282.0,0.20536695]
[1739001535104,0.12221484,96283.0,96282.0,0.05536695]
[1739001535315,0.13254027,96283.0,96282.0,0.05536695]
[1739001538447,0.45364027,96283.0,96282.0,0.05536695]
[1739001539256,0.45364027,96283.0,96282.0,4.533e-05]
[1739001543166,0.48608849,96283.0,96282.0,4.533e-05]
[1739001543989,0.48600849,96283.0,96282.0,4.533e-05]
[1739001546197,0.64179849,96283.0,96282.0,4.533e-05]
[1739001547474,0.64179849,96283.0,96282.0,0.00015213]
[1739001552041,0.63379849,96283.0,96282.0,0.00015213]
[1739001552261,0.64179849,96283.0,96282.0,0.00015213]
[1739001568364,0.74430214,96283.0,96282.0,0.00015213]
[1739001568970,0.64179849,96283.0,96282.0,0.00015213]
[1739001574693,0.64829421,96283.0,96282.0,0.00015213]
[1739001577259,0.64729421,96283.0,96282.0,0.00015213]
[1739001577622,0.64929421,96283.0,96282.0,0.00015213]
[1739001579304,0.65029421,96283.0,96282.0,0.00015213]
[1739001579461,0.75279786,96283.0,96282.0,0.00015213]
[1739001579845,0.65029421,96283.0,96282.0,0.00015213]
[1739001582850,0.64929421,96283.0,96282.0,0.00015213]
[1739001583218,0.65029421,96283.0,96282.0,0.00015213]
[1739001583548,0.64829421,96283.0,96282.0,0.00015213]
[1739001583778,0.65029421,96283.0,96282.0,0.00015213]
[1739001585060,0.64829421,96283.0,96282.0,0.00015213]
[1739001585287,0.64729421,96283.0,96282.0,0.00015213]
[1739001585446,0.64829421,96283.0,96282.0,0.00015213]
[1739001586757,0.65029421,96283.0,96282.0,0.00015213]
[1739001588422,0.75279786,96283.0,96282.0,0.00015213]
[1739001589565,0.64929421,96283.0,96282.0,0.00015213]
[1739001589801,0.64829421,96283.0,96282.0,0.00015213]
[1739001590125,0.65029421,96283.0,96282.0,0.00015213]
[1739001592705,0.64929421,96283.0,96282.0,0.00015213]
[1739001592836,0.65129421,96283.0,96282.0,0.00115213]
[1739001593241,0.65829421,96283.0,96282.0,0.00215213]
[1739001594408,0.65429421,96283.0,96282.0,0.00115213]
[1739001594567,0.76179786,96283.0,96282.0,0.00215213]
[1739001595540,0.65929421,96283.0,96282.0,0.00215213]
[1739001600183,0.62684599,96283.0,96282.0,0.00215213]
[1739001600379,0.65930231,96283.0,96282.0,0.00215213]
[1739001600718,0.65280659,96283.0,96282.0,0.00215213]
[1739001603200,0.65930257,96283.0,96282.0,0.00215213]
[1739001604563,0.66969614,96283.0,96282.0,0.00215213]
[1739001604841,0.66969614,96283.0,96282.0,0.05045213]
[1739001605017,0.66169614,96283.0,96282.0,0.05045213]
[1739001605248,0.66969614,96283.0,96282.0,0.05045213]
[1739001605870,0.66969614,96283.0,96282.0,0.00215213]
[1739001614717,0.155816,96268.0,96265.0,0.0751]
[1739001614965,0.45505997,96267.0,96265.0,0.0751]
[1739001615138,0.03245632,96266.0,96265.0,0.0751]
[1739001615358,0.13495997,96266.0,96265.0,0.0751]
[1739001616679,0.30766752,96266.0,96265.0,0.0751]
[1739001616978,0.30866752,96266.0,96265.0,0.0751]
[1739001617447,0.15284952,96266.0,96265.0,0.0751]
[1739001617904,0.13248811,96266.0,96265.0,0.0751]
[1739001618405,0.32075804,96266.0,96265.0,0.0751]
[1739001618644,0.28830611,96266.0,96265.0,0.0751]
[1739001618868,0.64085812,96266.0,96265.0,0.0751]
[1739001619345,0.48504012,96266.0,96262.0,0.04852428]
[1739001619561,0.10250365,96265.0,96262.0,0.04852428]
[1739001619800,0.11459521,96265.0,96262.0,0.04852428]
[1739001621012,0.01688955,96264.0,96262.0,0.04852428]
[1739001621543,0.01209156,96263.0,96262.0,0.04852428]
[1739001622259,0.02898111,96263.0,96262.0,0.04852428]
[1739001623784,0.03198111,96263.0,96262.0,0.04852428]
[1739001623982,0.03498111,96263.0,96262.0,0.04852428]
[1739001624625,0.03498111,96263.0,96262.0,0.43634828]
[1739001625039,0.02288955,96263.0,96262.0,0.43634828]
[1739001625998,0.01988955,96263.0,96262.0,0.43634828]
[1739001626160,0.02288955,96263.0,96262.0,0.43634828]
[1739001626364,0.01988955,96263.0,96262.0,0.43634828]
[1739001626909,0.01688955,96263.0,96262.0,0.43634828]
[1739001627082,0.01888955,96263.0,96262.0,0.43634828]
[1739001627493,0.01988955,96263.0,96262.0,0.43634828]
[1739001627703,0.01688955,96263.0,96262.0,0.43634828]
[1739001627907,0.01788955,96263.0,96262.0,0.43634828]
[1739001629113,0.01988955,96263.0,96262.0,0.43634828]
[1739001629363,0.01888955,96263.0,96262.0,0.43634828]
[1739001629578,0.01688955,96263.0,96262.0,0.43634828]